bitfinex-derivatives/quotes_SOLF0:USTF0_20250310
["timestamp","ask_amount","ask_price","bid_price","bid_amount"]
[1741614729885,41.02,126.06,125.94,42.05421262]
[1741614730083,0.05523068,126.04,125.94,42.05421262]
[1741614730280,42.05421262,126.04,125.94,42.05421262]
[1741614730489,0.05590172,126.0,125.93,7.9402]
[1741614730682,41.08,125.99,125.88,83.11421262]
[1741614730883,43.2455,125.99,125.88,41.06]
[1741614731189,0.05624003,125.95,125.87,303.91421262]
[1741614731385,41.09624003,125.95,125.87,303.91421262]
[1741614731582,7.9406,125.94,125.87,269.8039]
[1741614731788,0.05686288,125.92,125.82,234.05421262]
[1741614731988,41.04,125.91,125.82,42.05421262]
[1741614732486,0.05744911,125.88,125.82,42.05421262]
[1741614732680,0.05744911,125.88,125.87,7.9445]
[1741614732886,4.911e-05,125.88,125.87,7.9445]
[1741614733082,4.911e-05,125.88,125.81,344.95421262]
[1741614733583,4.911e-05,125.88,125.82,62.0]
[1741614733982,4.911e-05,125.88,125.84,0.05192222]
[1741614734291,4.911e-05,125.88,125.84,42.10613484]
[1741614734487,4.911e-05,125.88,125.84,0.05192222]
[1741614734679,7.94404911,125.88,125.84,0.05192222]
[1741614734877,4.911e-05,125.88,125.84,0.05192222]
[1741614735486,4.911e-05,125.88,125.75,261.9]
[1741614735487,41.06,125.87,125.75,261.9]
[1741614736085,44.11711262,125.9,125.77,41.1]
[1741614736289,41.1,125.87,125.83,7.9465]
[1741614736484,41.18,125.88,125.82,42.05421262]
[1741614736789,8.803e-05,125.86,125.85,42.05421262]
[1741614736990,2.0787,125.93,125.85,42.05421262]
[1741614737383,2.0787,125.93,125.86,62.0]
[1741614737583,2.0787,125.93,125.86,104.05421262]
[1741614737895,10.0196,125.93,125.86,104.05421262]
[1741614738087,2.0787,125.93,125.86,62.0]
[1741614738282,0.06056909,125.91,125.88,0.05238435]
[1741614738890,0.06056909,125.91,125.82,42.05421262]
[1741614739391,41.28,125.92,125.82,42.05421262]
[1741614739693,41.28,125.92,125.83,41.26]
[1741614739892,10.018,125.94,125.88,42.05421262]
[1741614739893,2.0777,125.94,125.88,42.05421262]
[1741614740080,0.05026882,125.89,125.88,41.3]
[1741614740295,0.05026882,125.89,125.86,0.02476705]
[1741614740489,41.4,125.94,125.82,234.05421262]
[1741614740696,0.05700286,125.89,125.86,0.02476705]
[1741614740991,7.9452,125.86,125.79,304.03421262]
[1741614741191,41.49700286,125.89,125.79,261.98]
[1741614741389,83.49421262,125.89,125.79,261.98]
[1741614742297,0.05639904,125.85,125.74,41.76]
[1741614742596,49.7061,125.85,125.76,83.81421262]
[1741614742898,0.05249279,125.82,125.76,83.81421262]
[1741614743099,43.7306,125.91,125.81,42.05421262]
[1741614743497,85.78481262,125.91,125.81,42.05421262]
[1741614743797,85.78481262,125.91,125.8,41.76]
[1741614744395,0.05018723,125.87,125.84,0.05249279]
[1741614744795,0.05018723,125.87,125.84,7.99839279]
[1741614744996,41.68,125.86,125.84,0.05249279]
[1741614745299,41.68,125.86,125.85,7.9458]
[1741614745592,0.05018723,125.87,125.84,0.05249279]
[1741614746598,42.10439985,125.87,125.8,16.0]
[1741614746797,41.8,125.86,125.8,16.0]
[1741614747394,7.9468,125.84,125.8,23.9488]
[1741614747699,41.8,125.86,125.8,16.0]
[1741614747700,0.05311049,125.83,125.8,16.0]
[1741614747995,0.05311049,125.83,125.82,7.9477]
[1741614748199,1.049e-05,125.83,125.82,7.9477]
[1741614748803,1.049e-05,125.83,125.82,115.7077]
[1741614749102,41.78,125.97,125.82,149.81421262]
[1741614749300,4.2494,125.96,125.85,42.05421262]
[1741614749498,7.9422,125.91,125.85,42.05421262]
[1741614749801,41.76,125.92,125.85,42.05421262]
[1741614750098,41.76,125.92,125.82,103.78]
[1741614750099,0.05228745,125.89,125.87,0.0501655]
[1741614751102,0.05228745,125.89,125.88,7.9439]
[1741614751291,0.05228745,125.89,125.87,0.0501655]
[1741614751492,0.05228745,125.89,125.87,7.9942655]
[1741614751698,0.05228745,125.89,125.87,0.0501655]
[1741614753400,207.8676,126.05,125.87,41.5501655]
[1741614753604,43.5964,126.0,125.9,42.05421262]
[1741614753803,4.2464,126.02,125.93,42.05421262]
[1741614754098,454.08,126.09,125.96,42.05421262]
[1741614754099,2.0964,126.05,125.96,42.05421262]
[1741614754803,0.05103048,126.02,125.99,0.05271928]
[1741614755006,42.12,126.01,125.9,42.05421262]
[1741614755201,42.12,126.01,125.93,42.05421262]
[1741614755504,7.9382,125.97,125.89,262.08]
[1741614755704,2.1544,126.0,125.89,262.08]
[1741614755895,2.1544,126.0,125.91,42.05421262]
[1741614756096,0.05708182,125.96,125.93,0.05267866]
[1741614756594,0.05708182,125.96,125.94,62.0]
[1741614756800,8.182e-05,125.96,125.95,42.05421262]
[1741614757104,8.182e-05,125.96,125.95,49.99361262]
[1741614757406,8.182e-05,125.96,125.93,0.05267866]
[1741614758106,42.46008182,125.96,125.86,44.4888]
[1741614758302,42.46,125.96,125.89,7.9432]
[1741614758606,42.46,125.96,125.86,42.46]
[1741614758794,2.119,125.95,125.86,42.46]
[1741614759096,2.119,125.95,125.87,42.05421262]
[1741614759304,0.05827333,125.92,125.89,0.04995123]
[1741614761303,7.333e-05,125.92,125.89,0.04995123]
[1741614761608,7.333e-05,125.92,125.91,7.942]
[1741614762600,7.333e-05,125.92,125.89,0.04995123]
[1741614763108,7.333e-05,125.92,125.91,7.942]
[1741614763304,7.333e-05,125.92,125.89,0.04995123]
[1741614763503,7.333e-05,125.92,125.83,262.02]
[1741614763700,1.9954,125.92,125.83,262.02]
[1741614763897,42.3,125.93,125.85,42.05421262]
[1741614764214,4.0299,125.97,125.87,42.05421262]
[1741614764714,0.05077026,125.93,125.91,0.05694207]
[1741614766015,7.026e-05,125.93,125.92,7.9413]
[1741614771916,7.026e-05,125.93,125.91,7.99834207]
[1741614772117,7.026e-05,125.93,125.91,0.05694207]
[1741614772616,7.026e-05,125.93,125.92,7.9413]
[1741614773315,7.026e-05,125.93,125.91,7.99874207]
[1741614773614,7.026e-05,125.93,125.91,0.05694207]
[1741614773917,7.026e-05,125.93,125.92,7.9413]
[1741614774122,7.026e-05,125.93,125.91,0.05694207]
[1741614774421,7.026e-05,125.93,125.91,7.99874207]
[1741614774623,7.026e-05,125.93,125.91,0.05694207]
[1741614775013,7.026e-05,125.93,125.92,7.9413]
[1741614777725,7.026e-05,125.93,125.92,11.9213]
[1741614777923,7.026e-05,125.93,125.92,7.9413]
[1741614778718,7.026e-05,125.93,125.91,0.05694207]
[1741614779026,7.026e-05,125.93,125.91,62.05694207]
[1741614779324,7.026e-05,125.93,125.92,7.9413]
[1741614780327,7.026e-05,125.93,125.91,62.05694207]
[1741614780516,7.026e-05,125.93,125.91,0.05694207]
[1741614781021,7.026e-05,125.93,125.92,7.9413]
[1741614781321,2.0678,126.01,125.92,42.05421262]
[1741614781621,1.9545,126.02,125.95,42.05421262]
[1741614782327,41.98,126.01,125.91,303.92]
[1741614782628,42.1045534,126.0,125.97,0.05248337]
[1741614782824,42.05421262,126.0,125.91,261.96]
[1741614783024,42.05421262,126.0,125.92,7.9413]
[1741614783330,42.05421262,126.0,125.91,261.96]
[1741614783634,42.05421262,126.0,125.92,69.941]
[1741614783927,0.05505979,125.97,125.95,0.05841628]
[1741614784123,41.88,125.96,125.87,42.05421262]
[1741614784728,1.9694,125.95,125.87,42.05421262]
[1741614785023,9.9092,125.95,125.87,42.05421262]
[1741614785220,0.05115376,125.92,125.85,2.0443]
[1741614785418,49.8421,125.91,125.82,261.94]
[1741614785622,41.9,125.91,125.79,2.0416]
[1741614785825,0.0599289,125.88,125.8,58.05421262]
[1741614786027,41.9,125.91,125.83,42.05421262]
[1741614786222,0.05294343,125.85,125.81,42.05421262]
[1741614786422,41.9,125.91,125.81,42.05421262]
[1741614786822,0.05207398,125.87,125.81,104.05421262]
[1741614787330,0.05207398,125.87,125.86,7.9451]
[1741614787721,0.05207398,125.87,125.84,7.946]
[1741614787924,0.05207398,125.87,125.81,104.05421262]
[1741614788327,0.05207398,125.87,125.86,7.9451]
[1741614788627,0.05207398,125.87,125.81,104.05421262]
[1741614788824,42.17207398,125.87,125.82,7.9474]
[1741614789031,42.17207398,125.87,125.8,16.0]
[1741614789333,7.9456,125.86,125.82,7.9476]
[1741614789525,44.15487398,125.87,125.8,16.0]
[1741614789725,7.9468,125.84,125.8,16.0]
[1741614789926,42.1,125.83,125.8,16.0]
[1741614790128,42.1,125.82,125.8,16.0]
[1741614790431,44.1423,125.82,125.71,85.03409884]
[1741614790621,86.25165821,125.82,125.71,127.08831146]
[1741614790827,86.19651262,125.82,125.71,127.08831146]
[1741614791028,0.05458036,125.78,125.75,7.9517]
[1741614791326,42.19458036,125.78,125.71,85.03409884]
[1741614791529,2.071,125.77,125.71,85.03409884]
[1741614791729,42.05421262,125.76,125.71,81.78579884]
[1741614791930,7.954,125.72,125.71,3.07691306]
[1741614792130,42.5,125.72,125.69,118.01604826]
[1741614792435,7.9547,125.71,125.69,117.83444826]
[1741614792735,0.05933936,125.72,125.69,117.83444826]
[1741614792923,4.03933936,125.72,125.69,117.83444826]
[1741614793127,42.05421262,125.7,125.66,229.23825888]
[1741614793322,7.9579,125.66,125.57,219.81359963]
[1741614793532,42.94,125.65,125.57,219.81359963]
[1741614793731,0.05761007,125.63,125.57,219.81359963]
[1741614794326,43.08,125.62,125.57,219.81359963]
[1741614795937,43.08,125.62,125.55,52.80126253]
[1741614795938,42.05421262,125.59,125.55,0.98459613]
[1741614796128,42.05421262,125.57,125.55,9.613e-05]
[1741614796324,43.6,125.56,125.46,62.0]
[1741614796622,42.05421262,125.52,125.42,7.9725]
[1741614796822,7.968,125.5,125.38,192.0]
[1741614797022,0.05334394,125.48,125.38,192.0]
[1741614797325,262.3,125.55,125.41,42.05421262]
[1741614797326,43.8,125.53,125.41,42.05421262]
[1741614797522,42.05421262,125.53,125.39,49.9962]
[1741614797736,0.05990931,125.48,125.41,42.05421262]
[1741614798034,43.94,125.56,125.39,49.9962]
[1741614798035,44.92,125.54,125.44,42.05421262]
[1741614798338,41.12921566,125.56,125.5,42.05421262]
[1741614798525,41.12921566,125.56,125.45,262.5]
[1741614798726,41.12921566,125.56,125.48,42.05421262]
[1741614799131,49.09391566,125.56,125.48,42.05421262]
[1741614799330,0.05577535,125.53,125.51,0.05863006]
[1741614799526,95.48081262,125.52,125.51,3.006e-05]
[1741614800037,99.46081262,125.52,125.51,3.006e-05]
[1741614800739,588.04842524,125.52,125.39,4.2124]
[1741614800930,542.01421262,125.52,125.39,4.2124]
[1741614801131,542.01421262,125.52,125.39,46.26661262]
[1741614801337,350.01421262,125.52,125.42,50.02711262]
[1741614801537,350.01421262,125.52,125.42,42.05421262]
[1741614801941,42.11053774,125.48,125.34,192.0]
[1741614802143,46.76,125.47,125.34,46.15591262]
[1741614802533,0.06061325,125.42,125.34,46.15591262]
[1741614802733,46.86,125.41,125.34,46.15591262]
[1741614803035,10.06443366,125.48,125.4,84.10842524]
[1741614803337,10.06443366,125.48,125.44,42.05421262]
[1741614803543,10.06443366,125.48,125.45,62.0]
[1741614803843,30.84691175,125.49,125.47,42.05421262]
[1741614804031,236.26444766,125.51,125.47,42.05421262]
[1741614804232,236.26444766,125.51,125.5,50.02211262]
[1741614804539,225.75058917,125.51,125.5,7.9679]
[1741614804739,212.79728917,125.51,125.5,50.02211262]
[1741614804938,172.40128917,125.51,125.5,54.00211262]
[1741614805235,170.37019057,125.57,125.5,42.05421262]
[1741614805445,0.05696888,125.52,125.5,42.05421262]
[1741614805745,170.37019057,125.57,125.5,42.05421262]
[1741614805943,1.832e-05,125.52,125.5,0.05463582]
[1741614806241,153.55479057,125.57,125.51,84.10842524]
[1741614806440,196.00879303,125.58,125.51,496.77421262]
[1741614806640,196.00879303,125.58,125.51,304.77421262]
[1741614807041,47.1,125.63,125.52,62.0]
[1741614807345,47.14,125.66,125.56,42.05421262]
[1741614807644,0.0555538,125.59,125.53,47.12]
[1741614808052,47.22,125.62,125.6,0.06070983]
[1741614808249,47.22,125.62,125.51,351.95421262]
[1741614808447,47.27708537,125.62,125.6,0.05674573]
[1741614808643,47.27708537,125.62,125.51,351.95421262]
[1741614808843,47.22,125.62,125.54,7.9652]
[1741614809050,47.22,125.62,125.52,42.05421262]
[1741614809254,47.22,125.62,125.51,304.77421262]
[1741614809458,2.139,125.61,125.51,304.77421262]
[1741614809946,0.0578421,125.57,125.55,0.0579197]
[1741614810452,47.0978421,125.57,125.55,0.0579197]
[1741614811149,55.0614421,125.57,125.51,7.9668]
[1741614811350,47.0978421,125.57,125.5,36.91327754]
[1741614811553,47.0978421,125.57,125.56,64.6420156]
[1741614811758,46.86,125.57,125.56,64.6420156]
[1741614812553,4.1225,125.6,125.51,42.05421262]
[1741614812746,46.8,125.62,125.51,42.05421262]
[1741614812951,0.05773045,125.57,125.54,0.05718072]
[1741614814347,0.05773045,125.57,125.54,46.95718072]
[1741614814546,0.00098472,125.57,125.55,42.05421262]
[1741614815057,47.16,125.68,125.55,48.09821262]
[1741614815257,306.81701262,125.72,125.58,42.05421262]
[1741614815454,44.07701262,125.72,125.59,47.18]
[1741614815654,42.05421262,125.7,125.59,47.18]
[1741614816057,47.16,125.69,125.59,47.18]
[1741614816256,0.05109963,125.66,125.63,0.05622565]
[1741614816448,47.12,125.65,125.54,262.74]
[1741614816653,89.17421262,125.65,125.52,281.17421262]
[1741614817149,47.12,125.65,125.52,281.17421262]
[1741614817460,42.05421262,125.64,125.53,62.0]
[1741614817662,0.05190657,125.6,125.57,0.05954136]
[1741614817854,47.27190657,125.6,125.57,0.05954136]
[1741614819051,7.9628,125.58,125.57,0.05954136]
[1741614819456,89.32611919,125.6,125.49,42.05421262]
[1741614819857,89.27421262,125.6,125.48,2.064]
[1741614820059,7.9661,125.53,125.49,7.9682]
[1741614820366,89.05421262,125.54,125.45,49.21770339]
[1741614820566,8.01950844,125.52,125.45,49.21770339]
[1741614820962,0.05260844,125.52,125.46,62.0]
[1741614821765,0.05260844,125.52,125.46,104.05421262]
[1741614822365,46.86,125.6,125.49,42.05421262]
[1741614822866,46.86,125.6,125.5,2.1287]
[1741614823069,42.05421262,125.59,125.5,2.1287]
[1741614823267,46.86,125.6,125.5,2.1287]
[1741614823467,46.86,125.6,125.51,42.05421262]
[1741614823766,0.05281896,125.56,125.54,0.0504731]
[1741614824571,0.05281896,125.56,125.55,7.9647]
[1741614824769,0.05281896,125.56,125.54,0.0504731]
[1741614825971,0.05281896,125.56,125.54,8.0156731]
[1741614826174,0.05281896,125.56,125.54,0.0504731]
[1741614827173,7.9662,125.53,125.49,7.9681]
[1741614827371,7.9662,125.53,125.43,91.25621262]
[1741614827771,47.18,125.56,125.43,49.202]
[1741614827972,2.1418,125.55,125.44,47.2]
[1741614828370,0.05248514,125.51,125.46,42.05421262]
[1741614828570,47.22,125.59,125.49,42.05421262]
[1741614828772,47.22,125.59,125.46,42.05421262]
[1741614828773,3.48740942,125.64,125.52,42.05421262]
[1741614828975,7.9634,125.58,125.53,62.0]
[1741614829275,44.10201262,125.62,125.55,7.9647]
[1741614829474,7.9627,125.59,125.55,7.9647]
[1741614829674,0.05092946,125.6,125.57,0.05840676]
[1741614830971,47.26,125.59,125.57,0.05840676]
[1741614831275,0.05092946,125.6,125.57,0.05840676]
[1741614831972,42.10514208,125.6,125.49,44.17971262]
[1741614832173,75.73848211,125.62,125.49,44.17971262]
[1741614832368,42.05421262,125.61,125.49,44.17971262]
[1741614832568,7.9656,125.54,125.46,234.05421262]
[1741614832769,47.4,125.56,125.46,234.05421262]
[1741614833075,5.038e-05,125.51,125.5,42.05421262]
[1741614833271,47.4,125.6,125.5,89.47421262]
[1741614833575,28.49848211,125.62,125.5,89.47421262]
[1741614833778,28.49848211,125.62,125.51,2.0758]
[1741614833974,75.87848211,125.62,125.51,6.1599]
[1741614834366,42.05421262,125.59,125.55,0.05074287]
[1741614834576,42.05421262,125.59,125.47,2.0758]
[1741614834577,47.36,125.58,125.47,2.0758]
[1741614835675,0.05663899,125.54,125.47,2.0758]
[1741614835976,0.05663899,125.54,125.48,47.38]
[1741614836474,7.9662,125.53,125.47,44.13001262]
[1741614836671,7.9662,125.53,125.47,2.0758]
[1741614836874,0.0610095,125.51,125.48,62.0]
[1741614837169,7.9657,125.54,125.51,7.9671]
[1741614837370,310.12,125.58,125.48,62.0]
[1741614837571,0.05819847,125.54,125.48,62.0]
[1741614838775,47.37819847,125.54,125.49,7.968]
[1741614838971,47.37819847,125.54,125.48,62.0]
[1741614839677,55.34399847,125.54,125.48,62.0]
[1741614839981,47.37819847,125.54,125.48,62.0]
[1741614840480,42.05421262,125.53,125.42,456.6872]
[1741614840668,304.81421262,125.58,125.44,42.05421262]
[1741614840873,0.05364335,125.52,125.45,89.31421262]
[1741614841173,262.76,125.58,125.48,42.05421262]
[1741614841374,270.7231,125.58,125.48,89.35421262]
[1741614841591,2.0616,125.59,125.48,89.35421262]
[1741614841780,7.962,125.6,125.51,42.05421262]
[1741614841984,33.42871075,125.62,125.52,47.2]
[1741614842277,33.42871075,125.62,125.54,0.05891267]
[1741614842278,0.05121334,125.57,125.54,0.05891267]
[1741614842479,0.05121334,125.57,125.52,47.2]
[1741614842685,31.38091075,125.62,125.54,42.11254387]
[1741614842880,31.38091075,125.62,125.54,42.05421262]
[1741614843480,31.38091075,125.62,125.55,62.0]
[1741614843779,0.05651699,125.6,125.57,0.05059666]
[1741614845987,46.91651699,125.6,125.49,42.05421262]
[1741614846170,46.86,125.6,125.49,42.05421262]
[1741614846375,2.0955,125.59,125.47,4.0753]
[1741614846576,262.78,125.58,125.42,193.38612284]
[1741614846777,42.05421262,125.57,125.43,88.93421262]
[1741614846977,42.05421262,125.54,125.44,62.0]
[1741614847182,0.05177805,125.51,125.49,0.0545075]
[1741614847485,309.66,125.5,125.37,84.88089659]
[1741614847681,42.05421262,125.46,125.38,84.88089659]
[1741614847879,4.1899,125.49,125.4,42.05421262]
[1741614848077,7.9719,125.44,125.38,84.88089659]
[1741614848275,88.93421262,125.48,125.39,7.9743]
[1741614848479,88.93421262,125.48,125.38,84.88089659]
[1741614848480,0.05599313,125.42,125.38,84.88089659]
[1741614848682,46.94,125.41,125.38,84.88089659]
[1741614848887,0.05788685,125.41,125.38,84.88089659]
[1741614849485,2.0261,125.49,125.39,42.05421262]
[1741614849682,7.9667,125.52,125.43,42.05421262]
[1741614849881,47.08,125.51,125.4,42.05421262]
[1741614850185,47.08,125.51,125.41,62.0]
[1741614850484,47.16,125.53,125.42,47.16]
[1741614850680,3.636e-05,125.47,125.45,42.11209867]
[1741614850881,2.0014,125.57,125.54,7.9649]
[1741614851079,2.0014,125.57,125.46,51.2445]
[1741614851275,2.0014,125.57,125.48,42.05421262]
[1741614851577,2.0014,125.57,125.46,51.2445]
[1741614851781,2.0014,125.57,125.48,42.05421262]
[1741614851977,0.05026165,125.53,125.5,8.02315019]
[1741614852181,0.05026165,125.53,125.5,0.05535019]
[1741614852389,89.75421262,125.55,125.41,42.05421262]
[1741614852390,42.05421262,125.52,125.41,42.05421262]
[1741614852585,51.9172,125.51,125.41,42.05421262]
[1741614852883,51.9172,125.51,125.39,47.82]
[1741614853187,42.05421262,125.49,125.37,42.05421262]
[1741614853379,42.05421262,125.46,125.34,304.91421262]
[1741614853681,0.0585978,125.44,125.42,0.05629879]
[1741614853888,47.76,125.45,125.35,62.0]
[1741614854089,2.18053427,125.44,125.35,62.0]
[1741614854387,50.0347,125.48,125.35,62.0]
[1741614854583,52.16,125.48,125.36,1.9672]
[1741614854791,52.16,125.48,125.37,89.83421262]
[1741614854975,52.16,125.48,125.37,47.78]
[1741614855180,42.05421262,125.47,125.39,7.9747]
[1741614855384,0.0605869,125.44,125.36,1.9672]
[1741614855684,89.93421262,125.44,125.34,42.05421262]
[1741614855885,0.05796004,125.41,125.34,42.05421262]
[1741614856683,0.05796004,125.41,125.31,91.78141262]
[1741614856984,42.05421262,125.41,125.31,1.9672]
[1741614857186,0.05065789,125.37,125.28,262.92]
[1741614857379,49.8297,125.4,125.34,7.9776]
[1741614857583,7.9749,125.39,125.34,7.9776]
[1741614857784,0.05178961,125.38,125.31,62.0]
[1741614858491,0.05178961,125.38,125.34,7.9781]
[1741614858689,42.52729284,125.38,125.26,42.47550323]
[1741614859087,0.06036723,125.33,125.26,42.47550323]
[1741614859385,2.3672,125.4,125.37,7.9757]
[1741614859692,50.0405,125.43,125.32,42.47550323]
[1741614859896,42.47550323,125.42,125.31,42.47550323]
[1741614860187,42.47550323,125.42,125.28,42.47550323]
[1741614860392,48.06,125.41,125.28,42.47550323]
[1741614860697,0.05702945,125.36,125.34,0.056611]
[1741614860987,48.26,125.4,125.34,0.056611]
[1741614861293,0.05313671,125.36,125.28,42.47550323]
[1741614861494,48.26,125.4,125.37,7.9759]
[1741614861793,262.98,125.42,125.32,110.3]
[1741614862086,50.4405,125.43,125.32,62.0]
[1741614862292,42.47550323,125.42,125.32,62.0]
[1741614862494,42.47550323,125.42,125.36,7.9767]
[1741614862694,42.47550323,125.42,125.32,62.0]
[1741614863085,0.05570003,125.4,125.38,0.05573018]
[1741614863987,0.05570003,125.4,125.32,62.0]
[1741614864189,42.47550323,125.41,125.32,62.0]
[1741614864593,42.47550323,125.41,125.29,2.3824]
[1741614864796,42.47550323,125.38,125.24,283.6227]
[1741614864994,50.6099,125.37,125.25,50.4424]
[1741614865291,0.05475299,125.34,125.25,2.3824]
[1741614865486,48.06,125.33,125.25,2.3824]
[1741614865683,7.9804,125.31,125.26,7.9829]
[1741614865896,48.06,125.33,125.22,2.4921]
[1741614866201,48.06,125.33,125.21,42.47550323]
[1741614866202,7.9833,125.26,125.21,7.9859]
[1741614866493,47.96,125.27,125.17,263.06]
[1741614866690,42.47550323,125.25,125.14,87.37299659]
[1741614866897,90.43550323,125.27,125.14,44.96760323]
[1741614866898,2.5254,125.26,125.14,44.96760323]
[1741614867091,0.05347503,125.21,125.2,0.02002866]
[1741614867291,2.5254,125.26,125.2,0.02002866]
[1741614867491,0.05334022,125.22,125.2,0.02002866]
[1741614867695,4.022e-05,125.22,125.2,0.02002866]
[1741614867894,47.84,125.3,125.2,46.49553189]
[1741614868096,47.84,125.3,125.2,42.49553189]
[1741614868290,55.8208,125.3,125.24,7.9839]
[1741614868498,47.84,125.3,125.21,2.4921]
[1741614868790,2.4218,125.33,125.23,42.47550323]
[1741614868994,2.4218,125.33,125.24,47.9530273]
[1741614869185,2.4218,125.33,125.24,47.9]
[1741614870085,0.05191186,125.3,125.27,0.05586777]
[1741614870998,0.05191186,125.3,125.27,8.03796777]
[1741614871297,0.05191186,125.3,125.27,0.05586777]
[1741614871500,42.47550323,125.29,125.18,325.16]
[1741614871800,44.86230323,125.29,125.19,42.47550323]
[1741614872099,2.3868,125.29,125.19,42.47550323]
[1741614872296,2.3868,125.29,125.18,263.16]
[1741614872495,47.88,125.3,125.18,263.16]
[1741614872694,0.06044111,125.25,125.22,0.05842666]
[1741614872889,4.111e-05,125.25,125.22,0.05842666]
[1741614873093,47.9,125.27,125.18,263.16]
[1741614873298,47.88,125.3,125.2,42.47550323]
[1741614873696,55.8608,125.3,125.25,7.9836]
[1741614873895,47.88,125.3,125.25,7.9836]
[1741614874100,0.05154105,125.29,125.26,0.0604601]
[1741614874300,47.88,125.3,125.24,7.9841]
[1741614874502,47.88,125.3,125.26,0.05034143]
[1741614874503,0.05200033,125.29,125.26,0.05034143]
[1741614874799,47.88,125.3,125.19,42.47550323]
[1741614874993,0.05264273,125.29,125.26,0.06139307]
[1741614875190,7.9826,125.27,125.22,7.9855]
[1741614875402,7.9826,125.27,125.26,0.0507359]
[1741614875603,42.47550323,125.29,125.18,263.16]
[1741614876294,7.982,125.28,125.24,7.9845]
[1741614876904,0.06108526,125.27,125.25,0.05562846]
[1741614877093,47.64,125.26,125.12,263.3]
[1741614877300,47.46710323,125.25,125.12,305.77550323]
[1741614877497,42.47550323,125.22,125.12,42.47550323]
[1741614877694,47.68,125.21,125.12,42.47550323]
[1741614878098,47.68,125.21,125.09,49.59320323]
[1741614878306,0.05403779,125.18,125.06,263.3]
[1741614878505,47.9,125.17,125.07,106.85520323]
[1741614878705,47.9,125.17,125.1,42.47550323]
[1741614878903,48.12,125.2,125.1,42.47550323]
[1741614879303,42.47550323,125.22,125.1,42.47550323]
[1741614879507,0.0535632,125.16,125.13,42.47550323]
[1741614879808,7.9862,125.22,125.16,7.9892]
[1741614879999,48.3,125.23,125.14,2.3797]
[1741614880197,48.32,125.26,125.16,42.47550323]
[1741614880399,263.3,125.29,125.17,48.32]
[1741614880400,48.32,125.29,125.17,48.32]
[1741614880799,7.9807,125.3,125.24,7.9842]
[1741614880999,53.2068,125.32,125.19,42.47550323]
[1741614881198,42.47550323,125.31,125.19,42.47550323]
[1741614881703,2.3822,125.32,125.22,42.47550323]
[1741614881906,2.3822,125.32,125.23,50.6726]
[1741614882115,90.69550323,125.34,125.24,62.0]
[1741614882403,4.7453,125.37,125.25,42.47550323]
[1741614882906,7.9776,125.35,125.25,42.47550323]
[1741614883209,0.05865612,125.32,125.3,0.0535632]
[1741614884505,8.03845612,125.32,125.3,0.0535632]
[1741614884806,0.05865612,125.32,125.3,0.0535632]
[1741614885007,7.98,125.31,125.3,0.0535632]
[1741614885209,0.05865612,125.32,125.22,311.48]
[1741614885401,90.73550323,125.34,125.22,263.4]
[1741614885402,42.47550323,125.3,125.22,263.4]
[1741614885606,90.73550323,125.34,125.23,62.0]
[1741614886208,90.73550323,125.34,125.23,69.9846]
[1741614886402,90.73550323,125.34,125.18,2.3165]
[1741614886610,7.9813,125.29,125.25,7.9835]
[1741614886801,0.0559025,125.27,125.18,2.3165]
[1741614887004,48.06,125.3,125.18,2.3165]
[1741614887206,0.05034918,125.24,125.18,2.3165]
[1741614887407,0.05034918,125.24,125.18,50.3365]
[1741614888315,0.05034918,125.24,125.22,7.9854]
[1741614888612,0.05034918,125.24,125.18,2.3165]
[1741614888817,0.05034918,125.24,125.2,7.9864]
[1741614889011,0.05034918,125.24,125.16,263.36]
[1741614889207,42.47550323,125.25,125.16,263.36]
[1741614889414,0.05757905,125.21,125.16,263.36]
[1741614889607,90.33308228,125.21,125.05,192.0]
[1741614889809,90.33308228,125.21,125.08,42.47550323]
[1741614889810,7.9872,125.2,125.08,42.47550323]
[1741614890015,0.05178765,125.14,125.08,42.47550323]
[1741614890411,0.05178765,125.14,124.99,84.88089659]
[1741614890619,305.83550323,125.17,125.04,42.47550323]
[1741614890817,0.06071218,125.08,125.04,42.47550323]
[1741614891115,0.05502075,125.07,125.04,90.39550323]
[1741614891312,50.4852,125.16,125.04,90.39550323]